fUST/lending_fUST_20240801
["ID","MTS","AMOUNT","RATE_DAILY","PERIOD"]
[333797803,1722519037974,-500.0,0.00013698,2]
[333797804,1722519037984,-500.0,0.00013698,2]
[333797805,1722519037995,-828.41,0.00013698,2]
[333797806,1722519038004,-500.0,0.00013698,2]
[333797807,1722519038013,-500.0,0.00013698,2]
[333797808,1722519038023,-500.0,0.00013698,2]
[333797809,1722519038035,-500.0,0.00013698,2]
[333797810,1722519038046,-500.0,0.00013698,2]
[333797811,1722519038055,-164.739988,0.00013698,2]
[333797812,1722519038065,-500.0,0.00013698,2]
[333797813,1722519038075,-500.0,0.00013698,2]
[333797814,1722519038084,-500.0,0.00013698,2]
[333797815,1722519038094,-164.739988,0.00013698,2]
[333797816,1722519038103,-164.739988,0.00013698,2]
[333797817,1722519038112,-500.0,0.00013698,2]
[333797818,1722519038122,-164.739988,0.00013698,2]
[333797819,1722519038132,-164.739988,0.00013698,2]
[333797820,1722519038142,-164.739988,0.00013698,2]
[333797821,1722519038152,-500.0,0.00013698,2]
[333797822,1722519038162,-164.739988,0.00013698,2]
[333797823,1722519038175,-164.739988,0.00013698,2]
[333797824,1722519038187,-164.739988,0.00013698,2]
[333797825,1722519038198,-164.739988,0.00013698,2]
[333797826,1722519038208,-500.0,0.00013698,2]
[333797827,1722519038219,-164.739988,0.00013698,2]
[333797828,1722519038230,-614.52,0.00013698,2]
[333797830,1722519038240,-674.82,0.00013698,2]
[333797831,1722519038249,-164.739988,0.00013698,2]
[333797833,1722519038260,-500.0,0.00013698,2]
[333797835,1722519038270,-500.0,0.00013698,2]
[333797837,1722519038280,-544.68,0.00013698,2]
[333797839,1722519038291,-500.0,0.00013698,2]
[333797841,1722519038302,-500.0,0.00013698,2]
[333797842,1722519038313,-500.0,0.00013698,2]
[333797843,1722519038323,-1265.88,0.00013698,2]
[333797844,1722519038333,-500.0,0.00013698,2]
[333797845,1722519038343,-500.0,0.00013698,2]
[333797846,1722519038353,-317.39242192,0.00013698,2]
[333797847,1722519038363,-500.0,0.00013698,2]
[333797848,1722519038373,-500.0,0.00013698,2]
[333797849,1722519038383,-500.0,0.00013698,2]
[333797850,1722519038393,-500.0,0.00013698,2]
[333797851,1722519038403,-642.30796598,0.00013698,2]
[333797852,1722519038413,-637.46,0.00013698,2]
[333797853,1722519038423,-500.0,0.00013698,2]
[333797854,1722519038435,-500.0,0.00013698,2]
[333797855,1722519038444,-151.0,0.00013698,2]
[333797856,1722519038454,-151.0,0.00013698,2]
[333797857,1722519038463,-151.0,0.00013698,2]
[333797858,1722519038474,-151.0,0.00013698,2]
[333797859,1722519038484,-151.0,0.00013698,2]
[333797860,1722519038494,-151.0,0.00013698,2]
[333797861,1722519038504,-500.0,0.00013698,2]
[333797862,1722519038514,-500.0,0.00013698,2]
[333797863,1722519038523,-1181.36,0.00013698,2]
[333797864,1722519038533,-151.0,0.00013698,2]
[333797865,1722519038543,-151.0,0.00013698,2]
[333797866,1722519038552,-603.49,0.00013698,2]
[333797867,1722519038562,-151.0,0.00013698,2]
[333797868,1722519038572,-290.315834,0.00013698,2]
[333797869,1722519038582,-151.0,0.00013698,2]
[333797870,1722519038591,-366.50280451,0.00013698,2]
[333797871,1722519038601,-151.0,0.00013698,2]
[333797872,1722519038611,-151.0,0.00013698,2]
[333797873,1722519038622,-151.0,0.00013698,2]
[333797874,1722519038632,-500.0,0.00013698,2]
[333797875,1722519038642,-151.0,0.00013698,2]
[333797876,1722519038653,-151.0,0.00013698,2]
[333797877,1722519038663,-151.0,0.00013698,2]
[333797878,1722519038673,-151.0,0.00013698,2]
[333797879,1722519038687,-500.0,0.00013698,2]
[333797880,1722519038697,-500.0,0.00013698,2]
[333797881,1722519038707,-151.0,0.00013698,2]
[333797882,1722519038718,-951.21,0.00013698,2]
[333797883,1722519038728,-151.0,0.00013698,2]
[333797884,1722519038738,-151.0,0.00013698,2]
[333797885,1722519038748,-151.0,0.00013698,2]
[333797886,1722519038758,-218.1480684,0.00013698,2]
[333797887,1722519038768,-500.0,0.00013698,2]
[333797888,1722519038778,-502.382924,0.00013698,2]
[333797889,1722519038788,-151.0,0.00013698,2]
[333797890,1722519038798,-500.0,0.00013698,2]
[333797891,1722519038807,-151.0,0.00013698,2]
[333797892,1722519038817,-151.0,0.00013698,2]
[333797893,1722519038826,-246.342266,0.00013698,2]
[333797894,1722519038836,-500.0,0.00013698,2]
[333797895,1722519038846,-639.37072379,0.00013698,2]
[333797896,1722519038856,-500.0,0.00013698,2]
[333797897,1722519038865,-500.0,0.00013698,2]
[333797898,1722519038875,-502.916762,0.00013698,2]
[333797899,1722519038885,-151.0,0.00013698,2]
[333797900,1722519038895,-500.0,0.00013698,2]
[333797901,1722519038905,-500.0,0.00013698,2]
[333797902,1722519038914,-500.0,0.00013698,2]
[333797903,1722519038924,-500.0,0.00013698,2]
[333797904,1722519038935,-1046.36,0.00013698,2]
[333797905,1722519038945,-500.0,0.00013698,2]
[333797906,1722519038957,-500.0,0.00013698,2]
[333797907,1722519038966,-505.67563781,0.00013698,2]
[333797908,1722519038976,-3145.38,0.00013698,2]
[333797909,1722519038985,-151.0,0.00013698,2]
[333797910,1722519038995,-500.0,0.00013698,2]
[333797911,1722519039005,-151.0,0.00013698,2]
[333797912,1722519039014,-151.0,0.00013698,2]
[333797913,1722519039023,-151.0,0.00013698,2]
[333797914,1722519039037,-151.0,0.00013698,2]
[333797915,1722519039048,-500.0,0.00013698,2]
[333797916,1722519039057,-151.0,0.00013698,2]
[333797917,1722519039067,-500.0,0.00013698,2]
[333797918,1722519039077,-151.0,0.00013698,2]
[333797919,1722519039087,-154.698521,0.00013698,2]
[333797920,1722519039096,-2231.75,0.00013698,2]
[333797921,1722519039106,-500.0,0.00013698,2]
[333797922,1722519039115,-500.0,0.00013698,2]
[333797923,1722519039126,-584.43,0.00013698,2]
[333797924,1722519039136,-584.43,0.00013698,2]
[333797925,1722519039146,-584.43,0.00013698,2]
[333797926,1722519039156,-584.43,0.00013698,2]
[333797927,1722519039166,-584.43,0.00013698,2]
[333797928,1722519039176,-151.821504,0.00013698,2]
[333797929,1722519039188,-584.43,0.00013698,2]
[333797930,1722519039198,-500.0,0.00013698,2]
[333797931,1722519039207,-500.0,0.00013698,2]
[333797932,1722519039217,-1245.41,0.00013698,2]
[333797933,1722519039226,-505.83136931,0.00013698,2]
[333797934,1722519039235,-555.94,0.00013698,2]
[333797935,1722519039245,-501.21315184,0.00013698,2]
[333797936,1722519039255,-527.62437724,0.00013698,2]
[333797937,1722519039264,-500.0,0.00013698,2]
[333797938,1722519039273,-503.10026611,0.00013698,2]
[333797939,1722519039282,-500.0,0.00013698,2]
[333797940,1722519039292,-500.0,0.00013698,2]
[333797941,1722519039301,-500.0,0.00013698,2]
[333797942,1722519039311,-635.22,0.00013698,2]
[333797943,1722519039321,-161.757577,0.00013698,2]
[333797944,1722519039330,-500.0,0.00013698,2]
[333797945,1722519039339,-161.757577,0.00013698,2]
[333797946,1722519039349,-161.757577,0.00013698,2]
[333797947,1722519039358,-161.757577,0.00013698,2]
[333797948,1722519039367,-161.757577,0.00013698,2]
[333797949,1722519039377,-161.757577,0.00013698,2]
[333797950,1722519039386,-500.0,0.00013698,2]
[333797951,1722519039395,-500.0,0.00013698,2]
[333797952,1722519039404,-669.55,0.00013698,2]
[333797953,1722519039414,-161.757577,0.00013698,2]
[333797954,1722519039423,-500.0,0.00013698,2]
[333797955,1722519039433,-161.757577,0.00013698,2]
[333797956,1722519039443,-151.0,0.00013698,2]
[333797957,1722519039452,-161.757577,0.00013698,2]
[333797958,1722519039462,-161.757577,0.00013698,2]
[333797959,1722519039471,-161.757577,0.00013698,2]
[333797960,1722519039610,-151.0,0.00013698,2]
[333797961,1722519039620,-161.757577,0.00013698,2]
[333797962,1722519039630,-151.0,0.00013698,2]
[333797963,1722519039641,-389.60615886,0.00013698,2]
[333797964,1722519039650,-918.83,0.00013698,2]
[333797965,1722519039660,-151.0,0.00013698,2]
[333797966,1722519039669,-151.0,0.00013698,2]
[333797967,1722519039679,-151.0,0.00013698,2]
[333797968,1722519039692,-500.3113706,0.00013698,2]
[333797969,1722519039701,-505.61210934,0.00013698,2]
[333797970,1722519039710,-500.0,0.00013698,2]
[333797971,1722519039720,-500.0,0.00013698,2]
[333797972,1722519039729,-502.96242654,0.00013698,2]
[333797973,1722519039739,-500.0,0.00013698,2]
[333797974,1722519039749,-500.0,0.00013698,2]
[333797975,1722519039759,-500.0,0.00013698,2]
[333797977,1722519039770,-623.05,0.00013698,2]
[333797978,1722519039780,-500.0,0.00013698,2]
[333797979,1722519039789,-500.0,0.00013698,2]
[333797980,1722519039799,-507.13807192,0.00013698,2]
[333797981,1722519039809,-500.0,0.00013698,2]
[333797983,1722519039819,-500.86539632,0.00013698,2]
[333797985,1722519039829,-500.0,0.00013698,2]
[333797986,1722519039838,-151.0,0.00013698,2]
[333797987,1722519039847,-500.0,0.00013698,2]
[333797988,1722519039857,-151.0,0.00013698,2]
[333797989,1722519039867,-151.0,0.00013698,2]
[333797990,1722519039876,-500.0,0.00013698,2]
[333797991,1722519039886,-238.601116,0.00013698,2]
[333797992,1722519039895,-500.0,0.00013698,2]
[333797994,1722519039904,-500.0,0.00013698,2]
[333797995,1722519039914,-500.0,0.00013698,2]
[333797996,1722519039923,-500.0,0.00013698,2]
[333797997,1722519039934,-500.0,0.00013698,2]
[333797998,1722519039943,-620.11633272,0.00013698,2]
[333797999,1722519039956,-500.0,0.00013698,2]
[333798000,1722519039966,-500.0,0.00013698,2]
[333798001,1722519039975,-500.0,0.00013698,2]
[333798002,1722519039984,-500.0,0.00013698,2]
[333798004,1722519039995,-172.870146,0.00013698,2]
[333798006,1722519040004,-172.870146,0.00013698,2]
[333798008,1722519040013,-172.870146,0.00013698,2]
[333798010,1722519040023,-172.870146,0.00013698,2]
[333798011,1722519040036,-172.870146,0.00013698,2]
[333798012,1722519040045,-500.0,0.00013698,2]
[333798013,1722519040055,-903.86,0.00013698,2]
[333798014,1722519040064,-172.870146,0.00013698,2]
[333798015,1722519040074,-500.0,0.00013698,2]
[333798016,1722519040083,-172.870146,0.00013698,2]
[333798017,1722519040092,-172.870146,0.00013698,2]
[333798018,1722519040102,-729.54,0.00013698,2]
[333798019,1722519040111,-172.870146,0.00013698,2]
[333798020,1722519040121,-172.870146,0.00013698,2]
[333798021,1722519040130,-172.870146,0.00013698,2]
[333798022,1722519040139,-172.870146,0.00013698,2]
[333798023,1722519040149,-790.04,0.00013698,2]
[333798024,1722519040158,-509.13621753,0.00013698,2]
[333798025,1722519040167,-151.0,0.00013698,2]
[333798026,1722519040176,-500.0,0.00013698,2]
[333798027,1722519040189,-151.0,0.00013698,2]
[333798028,1722519040198,-151.0,0.00013698,2]
[333798029,1722519040207,-151.0,0.00013698,2]
[333798030,1722519040217,-172.870146,0.00013698,2]
[333798031,1722519040226,-229.5087,0.00013698,2]
[333798032,1722519040235,-172.870146,0.00013698,2]
[333798033,1722519040245,-3064.15,0.00013698,2]
[333798034,1722519040255,-3064.15,0.00013698,2]
[333798035,1722519040264,-3064.15,0.00013698,2]
[333798036,1722519040273,-3064.15,0.00013698,2]
[333798037,1722519040283,-3064.15,0.00013698,2]
[333798038,1722519040292,-3064.15,0.00013698,2]
[333798039,1722519040302,-3064.15,0.00013698,2]
[333798040,1722519040311,-345.04454461,0.00013698,2]
[333798041,1722519040320,-3064.15,0.00013698,2]
[333798042,1722519040330,-3064.15,0.00013698,2]
[333798043,1722519040339,-3064.15,0.00013698,2]
[333798044,1722519040348,-3064.15,0.00013698,2]
[333798045,1722519040357,-500.0,0.00013698,2]
[333798046,1722519040366,-3064.15,0.00013698,2]
[333798047,1722519040375,-3064.15,0.00013698,2]
[333798048,1722519040385,-3064.15,0.00013698,2]
[333798049,1722519040395,-3064.15,0.00013698,2]
[333798050,1722519040403,-500.97354587,0.00013698,2]
[333798051,1722519040412,-500.0,0.00013698,2]
[333798052,1722519040421,-500.0,0.00013698,2]
[333798053,1722519040430,-501.0819928,0.00013698,2]
[333798054,1722519040442,-548.12,0.00013698,2]
[333798055,1722519040451,-151.0,0.00013698,2]
[333798056,1722519040460,-151.0,0.00013698,2]
[333798057,1722519040469,-151.0,0.00013698,2]
[333798058,1722519040478,-151.0,0.00013698,2]
[333798059,1722519040487,-175.326852,0.00013698,2]
[333798060,1722519040497,-1663.76,0.00013698,2]
[333798061,1722519040506,-500.0,0.00013698,2]
[333798062,1722519040515,-500.0,0.00013698,2]
[333798063,1722519040524,-500.0,0.00013698,2]
[333798064,1722519040533,-151.0,0.00013699,2]
[333798065,1722519040542,-151.0,0.00013699,2]
[333798066,1722519040551,-151.0,0.00013699,2]
[333798067,1722519040560,-151.0,0.00013699,2]
[333798068,1722519040569,-153.992695,0.00013699,2]
[333798069,1722519040579,-355.0,0.00013699,2]
[333798070,1722519040588,-2721.2135346,0.00013699,2]
[333798071,1722519040597,-151.0,0.00013699,2]
[333798072,1722519040606,-151.0,0.00013699,2]
[333798073,1722519040616,-151.0,0.00013699,2]
[333798074,1722519040625,-151.0,0.00013699,2]
[333798075,1722519040634,-151.0,0.00013699,2]
[333798076,1722519040643,-154.299432,0.00013699,2]
[333798077,1722519040652,-150.112233,0.000137,2]
[333798078,1722519040661,-157.0,0.0001374,2]
[333798079,1722519040670,-200.0,0.00013807,2]
[333798080,1722519040681,-589.45,0.00013848,2]
[333798081,1722519040693,-375.237986,0.00013848,2]
[333798082,1722519040702,-375.237986,0.00013848,2]
[333798083,1722519040711,-1380.94,0.00013848,2]
[333798084,1722519040719,-584.43,0.00013848,2]
[333798085,1722519040728,-172.870146,0.00013848,2]
[333798086,1722519040737,-172.870146,0.00013848,2]
[333798087,1722519040747,-2864.78299902,0.00013852,2]
[333798088,1722519040756,-200.0,0.00013861,2]
[333798089,1722519040765,-151.0,0.00013861,2]
[333798090,1722519040775,-3064.15,0.00013861,2]
[333798091,1722519040784,-292.067705,0.00013862,2]
[333798092,1722519040793,-292.067705,0.00013862,2]
[333798093,1722519040802,-151.0,0.00013862,2]
[333798094,1722519040811,-164.739988,0.00013862,2]
[333798095,1722519040821,-164.739988,0.00013862,2]
[333798096,1722519040830,-151.0,0.00013862,2]
[333798097,1722519040839,-151.0,0.00013862,2]
[333798098,1722519040849,-151.0,0.00013862,2]
[333798099,1722519040858,-151.0,0.00013862,2]
[333798100,1722519040868,-161.757577,0.00013862,2]
[333798101,1722519040877,-161.757577,0.00013862,2]
[333798102,1722519040886,-151.0,0.00013862,2]
[333798103,1722519040896,-589.45,0.00013871,2]
[333798104,1722519040905,-1380.94,0.00013871,2]
[333798105,1722519040914,-584.43,0.00013871,2]
[333798106,1722519040924,-3064.15,0.00013871,2]
[333798107,1722519040935,-375.237986,0.00013872,2]
[333798108,1722519040946,-375.237986,0.00013872,2]
[333798109,1722519040958,-589.45,0.00013889,2]
[333798110,1722519040967,-1380.94,0.00013889,2]
[333798111,1722519040980,-584.43,0.00013889,2]
[333798112,1722519040990,-375.237986,0.0001389,2]
[333798113,1722519041000,-375.237986,0.0001389,2]
[333798114,1722519041009,-292.067705,0.00013898,2]
[333798115,1722519041019,-292.067705,0.00013898,2]
[333798116,1722519041030,-1000.08174241,0.000139,2]
[333798117,1722519041039,-300.341264,0.000139,4]
[333798118,1722519041048,-150.112233,0.000139,2]
[333798119,1722519041058,-3000.0,0.000139,30]
[333798120,1722519041067,-151.0,0.000139,2]
[333798121,1722519041076,-151.0,0.000139,2]
[333798122,1722519041086,-164.739988,0.000139,2]
[333798123,1722519041097,-164.739988,0.000139,2]
[333798124,1722519041106,-151.0,0.000139,2]
[333798125,1722519041115,-151.0,0.000139,2]
[333798126,1722519041124,-151.0,0.000139,2]
[333798127,1722519041134,-151.0,0.000139,2]
[333798128,1722519041143,-161.757577,0.000139,2]
[333798129,1722519041153,-161.757577,0.000139,2]
[333798130,1722519041163,-268.437564,0.000139,2]
[333798131,1722519041173,-151.0,0.00013908,2]
[333798132,1722519041186,-589.45,0.00013908,2]
[333798133,1722519041195,-1380.94,0.00013908,2]
[333798134,1722519041205,-584.43,0.00013908,2]
[333798135,1722519041214,-3064.15,0.00013908,2]
[333798136,1722519041223,-500.0,0.00013909,2]
[333798137,1722519041233,-500.0,0.00013909,2]
[333798138,1722519041242,-513.88405676,0.00013909,2]
[333798139,1722519041252,-4570.197161,0.0001391,30]
[333798140,1722519041261,-1410.0,0.0001392,2]
[333798141,1722519041270,-150.0,0.00013931,2]
[333798142,1722519041279,-3064.15,0.0001394,2]
[333798143,1722519041289,-292.067705,0.00013941,2]
[333798144,1722519041300,-292.067705,0.00013941,2]
[333798145,1722519041310,-151.0,0.00013941,2]
[333798146,1722519041319,-164.739988,0.00013941,2]
[333798147,1722519041329,-164.739988,0.00013941,2]
[333798148,1722519041338,-151.0,0.00013941,2]
[333798149,1722519041348,-151.0,0.00013941,2]
[333798150,1722519041357,-151.0,0.00013941,2]
[333798151,1722519041367,-151.0,0.00013941,2]
[333798152,1722519041376,-161.757577,0.00013941,2]
[333798153,1722519041461,-161.757577,0.00013941,2]
[333798154,1722519041478,-172.870146,0.00013941,2]
[333798155,1722519041487,-172.870146,0.00013941,2]
[333798156,1722519041496,-500.0,0.0001395,2]
[333798157,1722519041505,-500.0,0.0001395,2]
[333798158,1722519041515,-500.0,0.00013952,2]
[333798159,1722519041525,-500.0,0.00013952,2]
[333798160,1722519041534,-589.45,0.0001396,2]
[333798161,1722519041543,-1380.94,0.0001396,2]
[333798162,1722519041552,-584.43,0.0001396,2]
[333798163,1722519041561,-3064.15,0.0001396,2]
[333798164,1722519041571,-3064.15,0.0001396,2]
[333798165,1722519041580,-3064.15,0.0001396,2]
[333798166,1722519041589,-3064.15,0.0001396,2]
[333798167,1722519041598,-3064.2567,0.0001396,2]
[333798168,1722519041607,-500.0,0.00013961,2]
[333798169,1722519041617,-500.0,0.00013961,2]
[333798170,1722519041626,-500.0,0.00013961,2]
[333798171,1722519041636,-500.0,0.00013961,2]
[333798172,1722519041646,-589.45,0.00013961,2]
[333798173,1722519041656,-589.45,0.00013961,2]
[333798174,1722519041665,-589.45,0.00013961,2]
[333798175,1722519041674,-589.45,0.00013961,2]
[333798176,1722519041686,-375.237986,0.00013961,2]
[333798177,1722519041696,-375.237986,0.00013961,2]
[333798178,1722519041705,-375.237986,0.00013961,2]
[333798179,1722519041714,-375.237986,0.00013961,2]
[333798180,1722519041723,-151.0,0.00013961,2]
[333798181,1722519041733,-1380.94,0.00013961,2]
[333798182,1722519041742,-1380.94,0.00013961,2]
[333798183,1722519041751,-1380.94,0.00013961,2]
[333798184,1722519041761,-1380.94,0.00013961,2]
[333798185,1722519041771,-584.43,0.00013961,2]
[333798186,1722519041780,-584.43,0.00013961,2]
[333798187,1722519041790,-584.43,0.00013961,2]
[333798188,1722519041800,-584.43,0.00013961,2]
[333798189,1722519041809,-375.237986,0.00013962,2]
[333798190,1722519041818,-375.237986,0.00013962,2]
[333798191,1722519041828,-500.0,0.00013971,2]
[333798192,1722519041838,-500.0,0.00013971,2]
[333798193,1722519041848,-500.0,0.00013971,2]
[333798194,1722519041858,-589.45,0.00013971,2]
[333798195,1722519041867,-589.45,0.00013971,2]
[333798196,1722519041877,-589.45,0.00013971,2]
[333798197,1722519041886,-589.45,0.00013971,2]
[333798198,1722519041895,-292.067705,0.00013971,2]
[333798199,1722519041904,-292.067705,0.00013971,2]
[333798200,1722519041914,-1380.94,0.00013971,2]
[333798201,1722519041923,-1380.94,0.00013971,2]
[333798202,1722519041933,-1380.94,0.00013971,2]
[333798203,1722519041944,-1380.94,0.00013971,2]
[333798204,1722519041957,-151.0,0.00013971,2]
[333798205,1722519041967,-164.739988,0.00013971,2]
[333798206,1722519041976,-164.73998,0.00013971,2]
[333798207,1722519041986,-151.0,0.00013971,2]
[333798208,1722519041997,-154.03254,0.00013971,2]
[333798209,1722519042006,-151.0,0.00013971,2]
[333798210,1722519042015,-151.0,0.00013971,2]
[333798211,1722519042026,-584.43,0.00013971,2]
[333798212,1722519042038,-584.43,0.00013971,2]
[333798213,1722519042048,-584.43,0.00013971,2]
[333798214,1722519042058,-584.43,0.00013971,2]
[333798215,1722519042068,-161.757577,0.00013971,2]
[333798216,1722519042078,-161.757585,0.00013971,2]
[333798217,1722519042087,-172.870146,0.00013971,2]
[333798218,1722519042097,-172.870144,0.00013971,2]
[333798219,1722519042106,-500.0,0.00013972,2]
[333798220,1722519042115,-500.0,0.00013972,2]
[333798221,1722519042125,-521.96,0.00013972,2]
[333798222,1722519042134,-422.35362005,0.00013972,2]
[333798223,1722519042144,-500.0,0.00013972,2]
[333798224,1722519042153,-500.0,0.00013972,2]
[333798225,1722519042164,-500.0,0.00013972,2]
[333798226,1722519042174,-500.0,0.00013972,2]
[333798227,1722519042183,-500.0,0.00013972,2]
[333798228,1722519042193,-512.50882319,0.00013972,2]
[333798229,1722519042203,-500.0,0.00013972,2]
[333798230,1722519042212,-505.5621124,0.00013972,2]
[333798231,1722519042222,-500.0,0.00013972,2]
[333798232,1722519042232,-503.84916088,0.00013972,2]
[333798233,1722519042242,-502.24355797,0.00013972,2]
[333798234,1722519042252,-500.0,0.00013972,2]
[333798235,1722519042262,-500.0,0.00013972,2]
[333798236,1722519042270,-500.0,0.00013972,2]
[333798237,1722519042280,-508.74638674,0.00013972,2]
[333798238,1722519042289,-601.0,0.00013972,2]
[333798239,1722519042299,-504.58178592,0.00013972,2]
[333798240,1722519042309,-500.0,0.00013972,2]
[333798241,1722519042319,-500.0,0.00013972,2]
[333798242,1722519042328,-500.0,0.00013972,2]
[333798243,1722519042337,-514.73510537,0.00013972,2]
[333798244,1722519042347,-508.70336244,0.00013972,2]
[333798245,1722519042357,-510.56750219,0.00013972,2]
[333798246,1722519042367,-500.0,0.00013972,2]
[333798247,1722519042376,-235.72198429,0.00013972,2]
[333798248,1722519042385,-500.0,0.00013972,2]
[333798249,1722519042394,-506.64737445,0.00013972,2]
[333798250,1722519042404,-339.65240433,0.00013972,2]
[333798251,1722519042413,-446.9165524,0.00013972,2]
[333798252,1722519042422,-632.49847983,0.00013972,2]
[333798253,1722519042431,-503.14079257,0.00013972,2]
[333798254,1722519042441,-500.0,0.00013972,2]
[333798255,1722519042450,-500.0,0.00013972,2]
[333798256,1722519042459,-500.0,0.00013972,2]
[333798257,1722519042468,-500.0,0.00013972,2]
[333798258,1722519042478,-234.7235192,0.00013972,2]
[333798259,1722519042487,-505.86527964,0.00013972,2]
[333798260,1722519042497,-500.0,0.00013972,2]
[333798261,1722519042506,-560.74588424,0.00013972,2]
[333798262,1722519042515,-500.0,0.00013972,2]
[333798263,1722519042525,-500.37493868,0.00013972,2]
[333798264,1722519042534,-500.0,0.00013972,2]
[333798265,1722519042544,-501.13963487,0.00013972,2]
[333798266,1722519042553,-500.0,0.00013972,2]
[333798267,1722519042562,-511.47924787,0.00013972,2]
[333798268,1722519042572,-472.48326461,0.00013972,2]
[333798269,1722519042581,-423.92609891,0.00013972,2]
[333798270,1722519042591,-510.24573408,0.00013972,2]
[333798271,1722519042600,-500.0,0.00013972,2]
[333798272,1722519042609,-506.17744813,0.00013972,2]
[333798273,1722519042618,-503.53013191,0.00013972,2]
[333798274,1722519042629,-500.0,0.00013972,2]
[333798275,1722519042638,-500.0,0.00013972,2]
[333798276,1722519042647,-548.21888697,0.00013972,2]
[333798277,1722519042656,-502.21190516,0.00013972,2]
[333798278,1722519042666,-500.0,0.00013972,2]
[333798280,1722519042676,-510.37113007,0.00013972,2]
[333798281,1722519042687,-507.51126654,0.00013972,2]
[333798282,1722519042696,-502.39443044,0.00013972,2]
[333798283,1722519042705,-505.74303105,0.00013972,2]
[333798284,1722519042715,-321.48463941,0.00013972,2]
[333798285,1722519042724,-302.66513445,0.00013972,2]
[333798286,1722519042734,-500.0,0.00013972,2]
[333798288,1722519042743,-502.2283621,0.00013972,2]
[333798291,1722519042753,-504.12362809,0.00013972,2]
[333798294,1722519042762,-507.05338622,0.00013972,2]
[333798297,1722519042771,-504.73581637,0.00013972,2]
[333798299,1722519042781,-216.38185092,0.00013972,2]
[333798300,1722519042790,-500.0,0.00013972,2]
[333798301,1722519042799,-500.0,0.00013972,2]
[333798303,1722519042809,-500.0,0.00013972,2]
[333798305,1722519042818,-500.0,0.00013972,2]
[333798307,1722519042828,-500.0,0.00013972,2]
[333798308,1722519042837,-500.0,0.00013972,2]
[333798309,1722519042847,-500.0,0.00013972,2]
[333798310,1722519042857,-500.0,0.00013972,2]
[333798311,1722519042867,-504.47015869,0.00013972,2]
[333798312,1722519042876,-500.0,0.00013972,2]
[333798313,1722519042886,-238.8963325,0.00013972,2]
[333798314,1722519042896,-500.0,0.00013972,2]
[333798315,1722519042906,-500.0,0.00013972,2]
[333798316,1722519042915,-502.4419735,0.00013972,2]
[333798317,1722519042925,-181.74233466,0.00013972,2]
[333798318,1722519042934,-500.0,0.00013972,2]
[333798319,1722519042946,-500.0,0.00013972,2]
[333798320,1722519042959,-500.0,0.00013972,2]
[333798321,1722519042968,-506.37355781,0.00013972,2]
[333798322,1722519042978,-500.0,0.00013972,2]
[333798324,1722519042987,-571.46808504,0.00013972,2]
[333798326,1722519042996,-500.0,0.00013972,2]
[333798327,1722519043006,-500.0,0.00013972,2]
[333798329,1722519043015,-500.0,0.00013972,2]
[333798331,1722519043025,-503.20105922,0.00013972,2]
[333798333,1722519043035,-504.88047884,0.00013972,2]